{"text_format":"3","workbook":"xlsx","n_sheets":2,"sheets":["Súhrn rozpočtu","Podrobnosti o rozpočte"],"not_rendered":{"images":1,"defined_names":1},"read":"whole","date_system":"1900"}

{"sheet":"Súhrn rozpočtu","index":0,"n_rows":28,"n_cols":7,"rows_kept":28}
[{"$nulls":6}," "]
[]
[null,"CELKOVÝ SVADOBNÝ ROZPOČET",{"v":20000,"d":"20,000 EUR"}]
[]
[null,"VÝDAVKY","Rozdelenie\nv %","Vyhradený rozpočet","Odhadované \nvýdavky","Skutočné \nvýdavky"]
[null,"Hostina",{"v":0.5,"d":"50%"},{"$f":"Celkový_svadobný_rozpočet*'Súhrn rozpočtu'!$C6","v":{"v":10000,"d":"10,000 EUR"}},{"$f":"Tabuľka_Hostina[[#Totals],[Odhadované výdavky]]","v":{"v":0,"d":"0 EUR"}},{"$f":"Tabuľka_Hostina[[#Totals],[Skutočné výdavky]]","v":{"v":0,"d":"0 EUR"}}]
[null,"Oblečenie",{"v":0.1,"d":"10%"},{"$f":"Celkový_svadobný_rozpočet*'Súhrn rozpočtu'!$C7","v":{"v":2000,"d":"2,000 EUR"}},{"$f":"Tabuľka_Oblečenie[[#Totals],[Odhadované výdavky]]","v":{"v":0,"d":"0 EUR"}},{"$f":"Tabuľka_Oblečenie[[#Totals],[Skutočné výdavky]]","v":{"v":0,"d":"0 EUR"}}]
[null,"Kvety a dekorácie",{"v":0.1,"d":"10%"},{"$f":"Celkový_svadobný_rozpočet*'Súhrn rozpočtu'!$C8","v":{"v":2000,"d":"2,000 EUR"}},{"$f":"Tabuľka_KvetyADekorácie[[#Totals],[Odhadované výdavky]]","v":{"v":0,"d":"0 EUR"}},{"$f":"Tabuľka_KvetyADekorácie[[#Totals],[Skutočné výdavky]]","v":{"v":0,"d":"0 EUR"}}]
[null,"Hudba",{"v":0.1,"d":"10%"},{"$f":"Celkový_svadobný_rozpočet*'Súhrn rozpočtu'!$C9","v":{"v":2000,"d":"2,000 EUR"}},{"$f":"Tabuľka_Hudba[[#Totals],[Odhadované výdavky]]","v":{"v":0,"d":"0 EUR"}},{"$f":"Tabuľka_Hudba[[#Totals],[Skutočné výdavky]]","v":{"v":0,"d":"0 EUR"}}]
[null,"Fotografie a video",{"v":0.1,"d":"10%"},{"$f":"Celkový_svadobný_rozpočet*'Súhrn rozpočtu'!$C10","v":{"v":2000,"d":"2,000 EUR"}},{"$f":"Tabuľka_FotografieAVideo[[#Totals],[Odhadované výdavky]]","v":{"v":0,"d":"0 EUR"}},{"$f":"Tabuľka_FotografieAVideo[[#Totals],[Skutočné výdavky]]","v":{"v":0,"d":"0 EUR"}}]
[null,"Priania a dary",{"v":0.03,"d":"3%"},{"$f":"Celkový_svadobný_rozpočet*'Súhrn rozpočtu'!$C11","v":{"v":600,"d":"600 EUR"}},{"$f":"Tabuľka_PrianiaADary[[#Totals],[Odhadované výdavky]]","v":{"v":0,"d":"0 EUR"}},{"$f":"Tabuľka_PrianiaADary[[#Totals],[Skutočné výdavky]]","v":{"v":0,"d":"0 EUR"}}]
[null,"Obrad",{"v":0.02,"d":"2%"},{"$f":"Celkový_svadobný_rozpočet*'Súhrn rozpočtu'!$C12","v":{"v":400,"d":"400 EUR"}},{"$f":"Tabuľka_Obrad[[#Totals],[Odhadované výdavky]]","v":{"v":0,"d":"0 EUR"}},{"$f":"Tabuľka_Obrad[[#Totals],[Skutočné výdavky]]","v":{"v":0,"d":"0 EUR"}}]
[null,"Pozvánky",{"v":0.02,"d":"2%"},{"$f":"Celkový_svadobný_rozpočet*'Súhrn rozpočtu'!$C13","v":{"v":400,"d":"400 EUR"}},{"$f":"Tabuľka_Pozvánky[[#Totals],[Odhadované výdavky]]","v":{"v":0,"d":"0 EUR"}},{"$f":"Tabuľka_Pozvánky[[#Totals],[Skutočné výdavky]]","v":{"v":0,"d":"0 EUR"}}]
[null,"Snubné prstene",{"v":0.02,"d":"2%"},{"$f":"Celkový_svadobný_rozpočet*'Súhrn rozpočtu'!$C14","v":{"v":400,"d":"400 EUR"}},{"$f":"Tabuľka_SnubnéPrstene[[#Totals],[Odhadované výdavky]]","v":{"v":0,"d":"0 EUR"}},{"$f":"Tabuľka_SnubnéPrstene[[#Totals],[Skutočné výdavky]]","v":{"v":0,"d":"0 EUR"}}]
[null,"Doprava",{"v":0.01,"d":"1%"},{"$f":"Celkový_svadobný_rozpočet*'Súhrn rozpočtu'!$C15","v":{"v":200,"d":"200 EUR"}},{"$f":"Tabuľka_Doprava[[#Totals],[Odhadované výdavky]]","v":{"v":0,"d":"0 EUR"}},{"$f":"Tabuľka_Doprava[[#Totals],[Skutočné výdavky]]","v":{"v":0,"d":"0 EUR"}}]
[null,"Celková hodnota",{"$f":"SUM(C6:C15)","v":{"v":1,"d":"100%"}},{"$f":"SUM(D6:D15)","v":{"v":20000,"d":"20,000 EUR"}},{"v":0,"d":"0 EUR"},{"v":0,"d":"0 EUR"}]
[]
[null,"PRÍSPEVKY"]
[null,"Zdroj finančných prostriedkov","Príspevok"]
[null,"Úspory",{"v":10000,"d":"10,000 EUR"}]
[null,"Mama a otec 1. partnera",{"v":4000,"d":"4,000 EUR"}]
[null,"Starí rodičia 1. partnera",{"v":2000,"d":"2,000 EUR"}]
[null,"Mama a otec 2. partnera",{"v":4000,"d":"4,000 EUR"}]
[null,"Starí rodičia 2. partnera",{"v":4000,"d":"4,000 EUR"}]
[null,"Iné príspevky",{"v":2000,"d":"2,000 EUR"}]
[null,"Celková hodnota",{"$f":"SUBTOTAL(109,Tabuľka_Príspevky[Príspevok])","v":{"v":26000,"d":"26,000 EUR"}}]
[]
[null,{"$f":"IF(Tabuľka_Príspevky[[#Totals],[Príspevok]]<Celkový_svadobný_rozpočet,\"Rozdiel na dorovnanie\",\"Dostupné dodatočné finančné prostriedky\")","v":"Dostupné dodatočné finančné prostriedky"},{"$f":"IF(Tabuľka_Príspevky[[#Totals],[Príspevok]]<Celkový_svadobný_rozpočet,Celkový_svadobný_rozpočet-Tabuľka_Príspevky[[#Totals],[Príspevok]],Tabuľka_Príspevky[[#Totals],[Príspevok]]-Celkový_svadobný_rozpočet)","v":{"v":6000,"d":"6,000 EUR"}}]

{"sheet":"Podrobnosti o rozpočte","index":1,"n_rows":80,"n_cols":4,"rows_kept":80}
[]
[null,"HOSTINA","Odhadované výdavky","Skutočné výdavky"]
[null,"Miesto konania a prenájmy"]
[null,"Jedlo a služby"]
[null,"Nápoje"]
[null,"Torta"]
[null,"Rôzne poplatky"]
[null,"Celková hodnota",{"$f":"SUBTOTAL(109,Tabuľka_Hostina[Odhadované výdavky])","v":{"v":0,"d":"0.00 EUR"}},{"$f":"SUBTOTAL(109,Tabuľka_Hostina[Skutočné výdavky])","v":{"v":0,"d":"0.00 EUR"}}]
[]
[null,"OBLEČENIE","Odhadované výdavky","Skutočné výdavky"]
[null,"Smoking, oblek a/alebo šaty"]
[null,"Skúška šiat"]
[null,"Ozdoba do vlasov a závoj"]
[null,"Doplnky"]
[null,"Účes a mejkap"]
[null,"Rôzne poplatky"]
[null,"Celková hodnota",{"$f":"SUBTOTAL(109,Tabuľka_Oblečenie[Odhadované výdavky])","v":{"v":0,"d":"0.00 EUR"}},{"$f":"SUBTOTAL(109,Tabuľka_Oblečenie[Skutočné výdavky])","v":{"v":0,"d":"0.00 EUR"}}]
[]
[null,"KVETY A DEKORÁCIE","Odhadované výdavky","Skutočné výdavky"]
[null,"Kvetinová výzdoba na obrad"]
[null,"Košík na lupienky pre družičku"]
[null,"Vankúš na prstene"]
[null,"Kytice"]
[null,"Pierka"]
[null,"Náramky na ruku"]
[null,"Dekorácie na recepciu"]
[null,"Osvetlenie"]
[null,"Rôzne poplatky"]
[null,"Celková hodnota",{"$f":"SUBTOTAL(109,Tabuľka_KvetyADekorácie[Odhadované výdavky])","v":{"v":0,"d":"0.00 EUR"}},{"$f":"SUBTOTAL(109,Tabuľka_KvetyADekorácie[Skutočné výdavky])","v":{"v":0,"d":"0.00 EUR"}}]
[]
[null,"HUDBA","Odhadované výdavky","Skutočné výdavky"]
[null,"Hudobníci na obrade"]
[null,"Hudobníci na koktail"]
[null,"Kapela na recepcii, dídžej alebo zábava"]
[null,"Ozvučenie alebo prenájom tanečného parketu"]
[null,"Rôzne poplatky"]
[null,"Celková hodnota",{"$f":"SUBTOTAL(109,Tabuľka_Hudba[Odhadované výdavky])","v":{"v":0,"d":"0.00 EUR"}},{"$f":"SUBTOTAL(109,Tabuľka_Hudba[Skutočné výdavky])","v":{"v":0,"d":"0.00 EUR"}}]
[]
[null,"FOTOGRAFIE A VIDEO","Odhadované výdavky","Skutočné výdavky"]
[null,"Fotografie"]
[null,"Videonahrávky"]
[null,"Ďalšie výtlačky a albumy"]
[null,"Rôzne poplatky"]
[null,"Celková hodnota",{"$f":"SUBTOTAL(109,Tabuľka_FotografieAVideo[Odhadované výdavky])","v":{"v":0,"d":"0.00 EUR"}},{"$f":"SUBTOTAL(109,Tabuľka_FotografieAVideo[Skutočné výdavky])","v":{"v":0,"d":"0.00 EUR"}}]
[]
[null,"PRIANIA A DARY","Odhadované výdavky","Skutočné výdavky"]
[null,"Uvítacie darčeky"]
[null,"Darčeky na párty"]
[null,"Rôzne poplatky"]
[null,"Celková hodnota",{"$f":"SUBTOTAL(109,Tabuľka_PrianiaADary[Odhadované výdavky])","v":{"v":0,"d":"0.00 EUR"}},{"$f":"SUBTOTAL(109,Tabuľka_PrianiaADary[Skutočné výdavky])","v":{"v":0,"d":"0.00 EUR"}}]
[]
[null,"OBRAD","Odhadované výdavky","Skutočné výdavky"]
[null,"Poplatok za sálu"]
[null,"Poplatok sobášiacej osobe alebo dar kostolu"]
[null,"Rôzne poplatky"]
[null,"Celková hodnota",{"$f":"SUBTOTAL(109,Tabuľka_Obrad[Odhadované výdavky])","v":{"v":0,"d":"0.00 EUR"}},{"$f":"SUBTOTAL(109,Tabuľka_Obrad[Skutočné výdavky])","v":{"v":0,"d":"0.00 EUR"}}]
[]
[null,"POZVÁNKY","Odhadované výdavky","Skutočné výdavky"]
[null,"Pohľadnice s informáciou o termíne konania"]
[null,"Pozvánky a potvrdenia účasti"]
[null,"Programy"]
[null,"Zasadací poriadok a menovky"]
[null,"Jedálny lístok"]
[null,"Poďakovania"]
[null,"Poštovné"]
[null,"Rôzne poplatky"]
[null,"Celková hodnota",{"$f":"SUBTOTAL(109,Tabuľka_Pozvánky[Odhadované výdavky])","v":{"v":0,"d":"0.00 EUR"}},{"$f":"SUBTOTAL(109,Tabuľka_Pozvánky[Skutočné výdavky])","v":{"v":0,"d":"0.00 EUR"}}]
[]
[null,"SNUBNÉ PRSTENE","Odhadované výdavky","Skutočné výdavky"]
[null,"Snubné prstene"]
[null,"Doplnky"]
[null,"Celková hodnota",{"$f":"SUBTOTAL(109,Tabuľka_SnubnéPrstene[Odhadované výdavky])","v":{"v":0,"d":"0.00 EUR"}},{"$f":"SUBTOTAL(109,Tabuľka_SnubnéPrstene[Skutočné výdavky])","v":{"v":0,"d":"0.00 EUR"}}]
[]
[null,"DOPRAVA","Odhadované výdavky","Skutočné výdavky"]
[null,"Požičanie hlavného auta"]
[null,"Požičanie auta pre hostí"]
[null,"Doprava pre hostí z iného mesta"]
[null,"Parkovacia služba"]
[null,"Rôzne poplatky"]
[null,"Celková hodnota",{"$f":"SUBTOTAL(109,Tabuľka_Doprava[Odhadované výdavky])","v":{"v":0,"d":"0.00 EUR"}},{"$f":"SUBTOTAL(109,Tabuľka_Doprava[Skutočné výdavky])","v":{"v":0,"d":"0.00 EUR"}}]